[Event "*** Titled Tuesday Blitz"]
[Site "Chess.com"]
[Date "2018.07.03"]
[Round "8"]
[White "kungmongmanh"]
[Black "djamir"]
[Result "1/2-1/2"]
[WhiteElo "2490"]
[BlackElo "2590"]
[TimeControl "180+2"]
[EndTime "14:47:12 PDT"]
[Termination "Game drawn - insufficient material"]

1. d4 {[%clk 0:03:01.9]} 1... Nf6 {[%clk 0:03:00.6]} 2. c4 {[%clk 0:03:02.8]}
2... e6 {[%clk 0:03:01.5]} 3. Nc3 {[%clk 0:03:03.7]} 3... Bb4 {[%clk 0:03:02.6]}
4. Qc2 {[%clk 0:03:04.9]} 4... O-O {[%clk 0:02:53.3]} 5. Nf3 {[%clk 0:03:05.6]}
5... c5 {[%clk 0:02:51]} 6. dxc5 {[%clk 0:03:06.5]} 6... Na6 {[%clk 0:02:48.8]}
7. a3 {[%clk 0:03:05.6]} 7... Bxc3+ {[%clk 0:02:50]} 8. Qxc3 {[%clk 0:03:06.8]}
8... Nxc5 {[%clk 0:02:50]} 9. Bf4 {[%clk 0:03:06.3]} 9... b6 {[%clk 0:02:45.5]}
10. e3 {[%clk 0:03:03.3]} 10... Bb7 {[%clk 0:02:43.1]} 11. Be2 {[%clk
0:02:58.7]} 11... Rc8 {[%clk 0:02:37.7]} 12. O-O {[%clk 0:02:51.2]} 12... d5
{[%clk 0:02:33.8]} 13. Rfd1 {[%clk 0:02:48.3]} 13... Qe7 {[%clk 0:02:34.6]} 14.
Bg5 {[%clk 0:02:43.5]} 14... Nce4 {[%clk 0:02:31.5]} 15. Bxf6 {[%clk 0:02:41.5]}
15... Nxf6 {[%clk 0:02:17.7]} 16. Qb4 {[%clk 0:02:38]} 16... Rfe8 {[%clk
0:01:32.5]} 17. Qxe7 {[%clk 0:02:25]} 17... Rxe7 {[%clk 0:01:34.1]} 18. cxd5
{[%clk 0:02:26.2]} 18... Nxd5 {[%clk 0:01:26.6]} 19. Rac1 {[%clk 0:02:26.7]}
19... Rxc1 {[%clk 0:01:20.7]} 20. Rxc1 {[%clk 0:02:27.2]} 20... Rc7 {[%clk
0:01:22.3]} 21. Rxc7 {[%clk 0:02:27.7]} 21... Nxc7 {[%clk 0:01:24.2]} 22. Nd4
{[%clk 0:02:24.5]} 22... e5 {[%clk 0:01:16.2]} 23. Nf5 {[%clk 0:02:23.9]} 23...
Ne6 {[%clk 0:00:32.3]} 24. Nd6 {[%clk 0:02:21.3]} 24... Nd8 {[%clk 0:00:33.4]}
25. Nb5 {[%clk 0:01:53.6]} 25... Ba6 {[%clk 0:00:31.7]} 26. Nc3 {[%clk
0:01:54.5]} 26... Bxe2 {[%clk 0:00:32.2]} 27. Nxe2 {[%clk 0:01:56.4]} 27... Kf8
{[%clk 0:00:33.7]} 28. Kf1 {[%clk 0:01:57.1]} 28... Ke7 {[%clk 0:00:35.2]} 29.
Ke1 {[%clk 0:01:58.5]} 29... Kd6 {[%clk 0:00:36.8]} 30. Kd2 {[%clk 0:02:00.1]}
30... Kc5 {[%clk 0:00:38.3]} 31. Kc3 {[%clk 0:02:01]} 31... a5 {[%clk
0:00:39.8]} 32. b4+ {[%clk 0:01:52.6]} 32... axb4+ {[%clk 0:00:40.8]} 33. axb4+
{[%clk 0:01:54.5]} 33... Kd5 {[%clk 0:00:40.3]} 34. f3 {[%clk 0:01:53.8]} 34...
f5 {[%clk 0:00:38.9]} 35. Ng3 {[%clk 0:01:45.7]} 35... f4 {[%clk 0:00:30]} 36.
e4+ {[%clk 0:01:45]} 36... Kc6 {[%clk 0:00:28.2]} 37. Nf5 {[%clk 0:01:42.5]}
37... g6 {[%clk 0:00:21.7]} 38. Ne7+ {[%clk 0:01:42.8]} 38... Kd6 {[%clk
0:00:22.8]} 39. Nd5 {[%clk 0:01:44]} 39... b5 {[%clk 0:00:23.7]} 40. Nf6 {[%clk
0:01:35.7]} 40... Ne6 {[%clk 0:00:21.1]} 41. Nxh7 {[%clk 0:01:24.8]} 41... Ke7
{[%clk 0:00:21.1]} 42. h4 {[%clk 0:01:25.5]} 42... Nd4 {[%clk 0:00:19.1]} 43.
Ng5 {[%clk 0:01:22.4]} 43... Ne2+ {[%clk 0:00:19.8]} 44. Kd3 {[%clk 0:01:21.2]}
44... Nd4 {[%clk 0:00:15.8]} 45. Nh3 {[%clk 0:01:18.7]} 45... Nc6 {[%clk
0:00:17.1]} 46. Kc3 {[%clk 0:01:19.4]} 46... Ke6 {[%clk 0:00:16.9]} 47. Nf2
{[%clk 0:01:20.4]} 47... Kd6 {[%clk 0:00:18.1]} 48. Nd3 {[%clk 0:01:18.3]} 48...
Nd8 {[%clk 0:00:14.9]} 49. Kd2 {[%clk 0:01:05.3]} 49... Nc6 {[%clk 0:00:15.7]}
50. Ke2 {[%clk 0:01:05]} 50... Ke6 {[%clk 0:00:17.2]} 51. Kf2 {[%clk 0:01:05.6]}
51... Kf6 {[%clk 0:00:18.3]} 52. g3 {[%clk 0:01:05.6]} 52... fxg3+ {[%clk
0:00:19.7]} 53. Kxg3 {[%clk 0:01:07.5]} 53... Nd4 {[%clk 0:00:21.2]} 54. Kg4
{[%clk 0:01:06.8]} 54... Nc2 {[%clk 0:00:20.3]} 55. f4 {[%clk 0:01:04.6]} 55...
exf4 {[%clk 0:00:21.5]} 56. Kxf4 {[%clk 0:01:06.5]} 56... Ke6 {[%clk 0:00:21.2]}
57. Kg5 {[%clk 0:01:04]} 57... Kf7 {[%clk 0:00:22.4]} 58. Ne5+ {[%clk
0:01:01.8]} 58... Kg7 {[%clk 0:00:23.2]} 59. Nc6 {[%clk 0:01:02.1]} 59... Kf7
{[%clk 0:00:22.8]} 60. Ne5+ {[%clk 0:01:01.3]} 60... Kg7 {[%clk 0:00:24.1]} 61.
Nxg6 {[%clk 0:01:02.5]} 61... Nxb4 {[%clk 0:00:24.9]} 62. h5 {[%clk 0:01:00.2]}
62... Nc6 {[%clk 0:00:26.1]} 63. h6+ {[%clk 0:00:56]} 63... Kh7 {[%clk
0:00:27.4]} 64. Nf8+ {[%clk 0:00:55]} 64... Kg8 {[%clk 0:00:26.9]} 65. Nd7
{[%clk 0:00:50.7]} 65... b4 {[%clk 0:00:24.8]} 66. Nc5 {[%clk 0:00:51.1]} 66...
Nd4 {[%clk 0:00:22.6]} 67. Kg6 {[%clk 0:00:50.7]} 67... b3 {[%clk 0:00:22.9]}
68. Nd3 {[%clk 0:00:48]} 68... Ne6 {[%clk 0:00:21.2]} 69. Nb2 {[%clk 0:00:41]}
69... Kh8 {[%clk 0:00:17.9]} 70. e5 {[%clk 0:00:40.8]} 70... Nc5 {[%clk
0:00:17.9]} 71. Nc4 {[%clk 0:00:29.5]} 71... Nd7 {[%clk 0:00:16.1]} 72. Kf5
{[%clk 0:00:17.2]} 72... Nxe5 {[%clk 0:00:14.3]} 73. Kxe5 {[%clk 0:00:12.4]}
73... Kh7 {[%clk 0:00:15.4]} 74. Kd4 {[%clk 0:00:13.7]} 74... Kxh6 {[%clk
0:00:16.8]} 75. Kc3 {[%clk 0:00:14.9]} 75... b2 {[%clk 0:00:18.6]} 76. Kxb2
{[%clk 0:00:16.2]} 1/2-1/2

[Event "*** Titled Tuesday Blitz"]
[Site "Chess.com"]
[Date "2018.07.03"]
[Round "8"]
[White "26andrej26"]
[Black "BasilSmash"]
[Result "1-0"]
[WhiteElo "2416"]
[BlackElo "2428"]
[TimeControl "180+2"]
[EndTime "14:47:27 PDT"]
[Termination "26andrej26 won on time"]

1. e4 {[%clk 0:03:01.9]} 1... c6 {[%clk 0:02:54.8]} 2. Nc3 {[%clk 0:03:02.8]}
2... d5 {[%clk 0:02:55.6]} 3. d4 {[%clk 0:03:04.7]} 3... dxe4 {[%clk 0:02:56.2]}
4. Nxe4 {[%clk 0:03:06.6]} 4... Bf5 {[%clk 0:02:57.4]} 5. Ng3 {[%clk 0:03:07.8]}
5... Bg6 {[%clk 0:02:59.3]} 6. h4 {[%clk 0:03:09.6]} 6... h6 {[%clk 0:03:00.3]}
7. Nf3 {[%clk 0:03:11.5]} 7... e6 {[%clk 0:03:01.3]} 8. Ne5 {[%clk 0:03:11.6]}
8... Bh7 {[%clk 0:03:02.5]} 9. Bd3 {[%clk 0:03:13.1]} 9... Bxd3 {[%clk
0:03:03.1]} 10. Qxd3 {[%clk 0:03:15]} 10... Nd7 {[%clk 0:03:04.1]} 11. Qe2
{[%clk 0:03:15.2]} 11... Ngf6 {[%clk 0:02:59.6]} 12. Bd2 {[%clk 0:03:15.8]}
12... Qb6 {[%clk 0:02:54.1]} 13. O-O-O {[%clk 0:03:15.1]} 13... Qxd4 {[%clk
0:02:52.7]} 14. Nxd7 {[%clk 0:03:13.9]} 14... Qxd7 {[%clk 0:02:50.1]} 15. Bxh6
{[%clk 0:03:12.6]} 15... Qc7 {[%clk 0:02:51]} 16. Bg5 {[%clk 0:03:11.1]} 16...
Be7 {[%clk 0:02:45.4]} 17. Kb1 {[%clk 0:03:10]} 17... a5 {[%clk 0:02:45.6]} 18.
c4 {[%clk 0:03:09.6]} 18... a4 {[%clk 0:02:46.2]} 19. h5 {[%clk 0:03:08.9]}
19... a3 {[%clk 0:02:45.9]} 20. b3 {[%clk 0:03:03.6]} 20... Qa5 {[%clk
0:02:46.3]} 21. f4 {[%clk 0:02:48.6]} 21... Nd7 {[%clk 0:01:51.7]} 22. Bxe7
{[%clk 0:02:36.1]} 22... Kxe7 {[%clk 0:01:53.6]} 23. Qd3 {[%clk 0:02:05.3]}
23... Qc7 {[%clk 0:01:45.7]} 24. f5 {[%clk 0:01:50.7]} 24... e5 {[%clk 0:01:36]}
25. f6+ {[%clk 0:01:45.3]} 25... Nxf6 {[%clk 0:01:32.6]} 26. Nf5+ {[%clk
0:01:45.6]} 26... Kf8 {[%clk 0:01:32.1]} 27. Qg3 {[%clk 0:01:42]} 27... Rh7
{[%clk 0:01:32.6]} 28. h6 {[%clk 0:01:26.7]} 28... gxh6 {[%clk 0:01:24.9]} 29.
Rxh6 {[%clk 0:01:24.4]} 29... Qc8 {[%clk 0:01:10.5]} 30. Qg5 {[%clk 0:01:03.6]}
30... Qxf5+ {[%clk 0:00:50.6]} 31. Qxf5 {[%clk 0:01:03.5]} 31... Rxh6 {[%clk
0:00:52.5]} 32. g4 {[%clk 0:00:58.8]} 32... Rg6 {[%clk 0:00:44.8]} 33. g5 {[%clk
0:00:53.8]} 33... Nh7 {[%clk 0:00:41.8]} 34. Rh1 {[%clk 0:00:51.6]} 34... Kg8
{[%clk 0:00:38.3]} 35. Rh6 {[%clk 0:00:35.1]} 35... Rg7 {[%clk 0:00:20.8]} 36.
g6 {[%clk 0:00:26.2]} 36... fxg6 {[%clk 0:00:09.8]} 37. Rxg6 {[%clk 0:00:27.6]}
37... Rxg6 {[%clk 0:00:11]} 38. Qxg6+ {[%clk 0:00:28.7]} 38... Kh8 {[%clk
0:00:12.9]} 39. Qe6 {[%clk 0:00:25]} 39... Rf8 {[%clk 0:00:08.3]} 40. Qxe5+
{[%clk 0:00:25.6]} 40... Kg8 {[%clk 0:00:09.6]} 41. Qe6+ {[%clk 0:00:21.5]}
41... Rf7 {[%clk 0:00:10.1]} 42. b4 {[%clk 0:00:21.7]} 42... Nf6 {[%clk
0:00:10.3]} 43. Kc2 {[%clk 0:00:22.1]} 43... Kf8 {[%clk 0:00:10.5]} 44. Kb3
{[%clk 0:00:22.3]} 44... Nd7 {[%clk 0:00:06]} 45. Kxa3 {[%clk 0:00:21.4]} 45...
Nb6 {[%clk 0:00:06.9]} 46. c5 {[%clk 0:00:14]} 46... Nd5 {[%clk 0:00:07.7]} 47.
Qc8+ {[%clk 0:00:14.9]} 47... Kg7 {[%clk 0:00:08.1]} 48. Ka4 {[%clk 0:00:16.2]}
48... Kf6 {[%clk 0:00:08.7]} 49. a3 {[%clk 0:00:16.3]} 49... Ke5 {[%clk
0:00:09]} 50. Qh3 {[%clk 0:00:15.6]} 50... Re7 {[%clk 0:00:09.4]} 51. Qg3+
{[%clk 0:00:16.5]} 51... Kd4 {[%clk 0:00:10.3]} 52. Qh4+ {[%clk 0:00:15.8]}
52... Kc3 {[%clk 0:00:09.8]} 53. Ka5 {[%clk 0:00:16.1]} 53... Kb3 {[%clk
0:00:10.4]} 54. Qg3+ {[%clk 0:00:16]} 54... Kc4 {[%clk 0:00:11.1]} 55. Qg4+
{[%clk 0:00:16.1]} 55... Kb3 {[%clk 0:00:12]} 56. Qd1+ {[%clk 0:00:16.7]} 56...
Kc4 {[%clk 0:00:12.6]} 57. Qc2+ {[%clk 0:00:14.9]} 57... Kd4 {[%clk 0:00:13.6]}
58. Qd2+ {[%clk 0:00:10.2]} 58... Kc4 {[%clk 0:00:14.1]} 59. Qa2+ {[%clk
0:00:11.4]} 59... Kd4 {[%clk 0:00:15]} 60. Qa1+ {[%clk 0:00:10.3]} 60... Kc4
{[%clk 0:00:15.8]} 61. Qf1+ {[%clk 0:00:11.9]} 61... Kd4 {[%clk 0:00:16.6]} 62.
Ka4 {[%clk 0:00:10.7]} 62... Nc3+ {[%clk 0:00:15.7]} 63. Kb3 {[%clk 0:00:10.6]}
63... Nd5 {[%clk 0:00:17.4]} 64. Ka4 {[%clk 0:00:11.9]} 64... Nc3+ {[%clk
0:00:18.3]} 65. Kb3 {[%clk 0:00:13]} 65... Nd5 {[%clk 0:00:20.2]} 66. Qf2+
{[%clk 0:00:14.1]} 66... Kd3 {[%clk 0:00:20.1]} 67. Qf1+ {[%clk 0:00:14.2]}
67... Kd4 {[%clk 0:00:21.2]} 68. Qg1+ {[%clk 0:00:13.6]} 68... Kd3 {[%clk
0:00:19.5]} 69. a4 {[%clk 0:00:13.1]} 69... Re3 {[%clk 0:00:18.3]} 70. b5 {[%clk
0:00:13.4]} 70... Re4 {[%clk 0:00:09.9]} 71. bxc6 {[%clk 0:00:12.1]} 71... bxc6
{[%clk 0:00:11.8]} 72. Qg6 {[%clk 0:00:12.9]} 72... Kd4 {[%clk 0:00:08.8]} 73.
Qxc6 {[%clk 0:00:12.1]} 73... Re3+ {[%clk 0:00:10]} 74. Kb2 {[%clk 0:00:13.4]}
74... Re2+ {[%clk 0:00:10.9]} 75. Kc1 {[%clk 0:00:13.6]} 75... Rc2+ {[%clk
0:00:10.1]} 76. Kd1 {[%clk 0:00:08.5]} 76... Ne3+ {[%clk 0:00:05.4]} 77. Ke1
{[%clk 0:00:08.3]} 77... Ng2+ {[%clk 0:00:06.5]} 78. Kf1 {[%clk 0:00:09.5]}
78... Ne3+ {[%clk 0:00:07.6]} 79. Ke1 {[%clk 0:00:10.2]} 79... Ng2+ {[%clk
0:00:08]} 80. Kf1 {[%clk 0:00:11.6]} 1-0

[Event "*** Titled Tuesday Blitz"]
[Site "Chess.com"]
[Date "2018.07.03"]
[Round "8"]
[White "florianschwabeneder"]
[Black "dachessmandan"]
[Result "1-0"]
[WhiteElo "2478"]
[BlackElo "2421"]
[TimeControl "180+2"]
[EndTime "14:48:28 PDT"]
[Termination "florianschwabeneder won by checkmate"]

1. b3 {[%clk 0:03:01.9]} 1... Nf6 {[%clk 0:02:59.2]} 2. Bb2 {[%clk 0:03:03.8]}
2... d5 {[%clk 0:02:59.2]} 3. e3 {[%clk 0:03:04.9]} 3... g6 {[%clk 0:02:57.7]}
4. d4 {[%clk 0:03:03.7]} 4... Bg7 {[%clk 0:02:58.5]} 5. Nf3 {[%clk 0:03:04.6]}
5... O-O {[%clk 0:02:59.2]} 6. Be2 {[%clk 0:03:05.3]} 6... Bg4 {[%clk
0:02:58.5]} 7. Nbd2 {[%clk 0:03:03.8]} 7... c6 {[%clk 0:02:58.1]} 8. O-O {[%clk
0:03:03.6]} 8... Nbd7 {[%clk 0:02:58.7]} 9. h3 {[%clk 0:03:03.4]} 9... Bxf3
{[%clk 0:02:53.2]} 10. Nxf3 {[%clk 0:03:04]} 10... Qc7 {[%clk 0:02:54.8]} 11. c4
{[%clk 0:03:03.9]} 11... Rfe8 {[%clk 0:02:42]} 12. Rc1 {[%clk 0:03:04.1]} 12...
Qa5 {[%clk 0:02:40]} 13. a3 {[%clk 0:03:03.7]} 13... Ne4 {[%clk 0:02:35.2]} 14.
b4 {[%clk 0:03:02.6]} 14... Qd8 {[%clk 0:02:28.4]} 15. Qb3 {[%clk 0:02:55.8]}
15... Nb6 {[%clk 0:02:19.1]} 16. cxd5 {[%clk 0:02:44.7]} 16... Nxd5 {[%clk
0:01:59.8]} 17. Rfd1 {[%clk 0:02:35.8]} 17... Bh6 {[%clk 0:01:49.8]} 18. Ne5
{[%clk 0:02:28.3]} 18... Qd6 {[%clk 0:01:28.3]} 19. b5 {[%clk 0:02:21]} 19...
Nxf2 {[%clk 0:01:01.4]} 20. Kxf2 {[%clk 0:02:18.6]} 20... Qf6+ {[%clk
0:01:01.9]} 21. Kg1 {[%clk 0:02:11.8]} 21... Bxe3+ {[%clk 0:01:01.5]} 22. Kh1
{[%clk 0:02:12.6]} 22... Qf2 {[%clk 0:00:52.5]} 23. Bf3 {[%clk 0:02:00.1]} 23...
Bxc1 {[%clk 0:00:48.6]} 24. Bxc1 {[%clk 0:01:53.3]} 24... e6 {[%clk 0:00:41.8]}
25. bxc6 {[%clk 0:01:18.4]} 25... bxc6 {[%clk 0:00:42.2]} 26. Nxc6 {[%clk
0:01:19.4]} 26... Rac8 {[%clk 0:00:42.5]} 27. Ne5 {[%clk 0:01:10.3]} 27... Nc3
{[%clk 0:00:40.2]} 28. Rg1 {[%clk 0:00:59.5]} 28... Qxd4 {[%clk 0:00:39.9]} 29.
Ng4 {[%clk 0:00:53.5]} 29... h5 {[%clk 0:00:38.5]} 30. Be3 {[%clk 0:00:43.5]}
30... Qg7 {[%clk 0:00:30.2]} 31. Nf2 {[%clk 0:00:42.5]} 31... Nd5 {[%clk
0:00:30.3]} 32. Bxa7 {[%clk 0:00:35.8]} 32... Rc3 {[%clk 0:00:29.2]} 33. Qb2
{[%clk 0:00:31.7]} 33... Rc7 {[%clk 0:00:27.5]} 34. Qxg7+ {[%clk 0:00:30.5]}
34... Kxg7 {[%clk 0:00:29.3]} 35. Bd4+ {[%clk 0:00:31.5]} 35... e5 {[%clk
0:00:28.4]} 36. Bb2 {[%clk 0:00:27.1]} 36... Nf4 {[%clk 0:00:28.2]} 37. Re1
{[%clk 0:00:23.1]} 37... f6 {[%clk 0:00:27.7]} 38. Rd1 {[%clk 0:00:12]} 38...
Rc2 {[%clk 0:00:28.2]} 39. Rd7+ {[%clk 0:00:12.5]} 39... Kh6 {[%clk 0:00:29.3]}
40. Ne4 {[%clk 0:00:13.4]} 40... Rxb2 {[%clk 0:00:23.6]} 41. Nxf6 {[%clk
0:00:14.4]} 41... Rf8 {[%clk 0:00:25]} 42. Ne4 {[%clk 0:00:13.3]} 42... Rb1+
{[%clk 0:00:24.5]} 43. Kh2 {[%clk 0:00:14.1]} 43... Rb3 {[%clk 0:00:22.4]} 44.
h4 {[%clk 0:00:14.2]} 44... Ne6 {[%clk 0:00:21]} 45. a4 {[%clk 0:00:12.6]} 45...
Rb4 {[%clk 0:00:17.4]} 46. Re7 {[%clk 0:00:11.7]} 46... Rb6 {[%clk 0:00:08.7]}
47. a5 {[%clk 0:00:10.2]} 47... Ra6 {[%clk 0:00:09.3]} 48. Be2 {[%clk
0:00:08.5]} 48... Rxa5 {[%clk 0:00:10.6]} 49. Rxe6 {[%clk 0:00:09.1]} 49... Ra4
{[%clk 0:00:12.2]} 50. Bf3 {[%clk 0:00:05.9]} 50... Ra7 {[%clk 0:00:13.1]} 51.
Rxe5 {[%clk 0:00:05.5]} 51... Raf7 {[%clk 0:00:14.8]} 52. Kg3 {[%clk 0:00:05.9]}
52... Rf5 {[%clk 0:00:14.7]} 53. Re7 {[%clk 0:00:06.6]} 53... R5f7 {[%clk
0:00:14.3]} 54. Re6 {[%clk 0:00:07.7]} 54... Rg7 {[%clk 0:00:14.5]} 55. Ng5
{[%clk 0:00:08.5]} 55... Rc8 {[%clk 0:00:15.1]} 56. Re3 {[%clk 0:00:07.5]} 56...
Rb8 {[%clk 0:00:15.5]} 57. Rc3 {[%clk 0:00:07.6]} 57... Re7 {[%clk 0:00:16.4]}
58. Rc6 {[%clk 0:00:07.5]} 58... Rg7 {[%clk 0:00:17.8]} 59. Ne6 {[%clk
0:00:07.7]} 59... Re7 {[%clk 0:00:17.3]} 60. Nf4 {[%clk 0:00:08.4]} 60... Rg7
{[%clk 0:00:18.2]} 61. Bxh5 {[%clk 0:00:08.8]} 61... Rb3+ {[%clk 0:00:18.5]} 62.
Bf3 {[%clk 0:00:09.8]} 62... Ra3 {[%clk 0:00:17.2]} 63. h5 {[%clk 0:00:10.4]}
63... Ra4 {[%clk 0:00:13.7]} 64. Nxg6 {[%clk 0:00:11]} 64... Kg5 {[%clk
0:00:12.6]} 65. Rc5+ {[%clk 0:00:10.1]} 65... Kh6 {[%clk 0:00:12.9]} 66. Kh2
{[%clk 0:00:10.5]} 66... Rb4 {[%clk 0:00:12.2]} 67. Ne5 {[%clk 0:00:11]} 67...
Kh7 {[%clk 0:00:11.6]} 68. Nd3 {[%clk 0:00:09.1]} 68... Rd4 {[%clk 0:00:12]} 69.
Nf2 {[%clk 0:00:09.5]} 69... Rh4+ {[%clk 0:00:12.9]} 70. Kg1 {[%clk 0:00:07.8]}
70... Rf4 {[%clk 0:00:14.1]} 71. Kf1 {[%clk 0:00:07.7]} 71... Rd4 {[%clk
0:00:14.7]} 72. Ke2 {[%clk 0:00:08.5]} 72... Rd6 {[%clk 0:00:16.3]} 73. Be4+
{[%clk 0:00:09.4]} 73... Kh6 {[%clk 0:00:16.6]} 74. g4 {[%clk 0:00:10.4]} 74...
Re6 {[%clk 0:00:17.3]} 75. Kf3 {[%clk 0:00:11.5]} 75... Rf6+ {[%clk 0:00:18.2]}
76. Bf5 {[%clk 0:00:12.8]} 76... Re7 {[%clk 0:00:18.6]} 77. Ne4 {[%clk
0:00:13.3]} 77... Rff7 {[%clk 0:00:18.6]} 78. Rc6+ {[%clk 0:00:14.5]} 78... Kg7
{[%clk 0:00:19.9]} 79. Kf4 {[%clk 0:00:15.9]} 79... Re8 {[%clk 0:00:20.4]} 80.
Kg5 {[%clk 0:00:15.1]} 80... Ref8 {[%clk 0:00:21.2]} 81. h6+ {[%clk 0:00:14.8]}
81... Kh8 {[%clk 0:00:22.2]} 82. Nf6 {[%clk 0:00:12.8]} 82... Re7 {[%clk
0:00:18.4]} 83. Nh5 {[%clk 0:00:13.1]} 83... Ref7 {[%clk 0:00:16.2]} 84. Bg6
{[%clk 0:00:09.6]} 84... Rg8 {[%clk 0:00:17.2]} 85. Ng7 {[%clk 0:00:09.4]} 85...
Rgf8 {[%clk 0:00:16.1]} 86. Bxf7 {[%clk 0:00:09.9]} 86... Rxf7 {[%clk
0:00:14.7]} 87. Nf5 {[%clk 0:00:07.6]} 87... Rf8 {[%clk 0:00:15.7]} 88. Kf4
{[%clk 0:00:08.6]} 88... Re8 {[%clk 0:00:16.8]} 89. g5 {[%clk 0:00:09.2]} 89...
Kh7 {[%clk 0:00:14.2]} 90. g6+ {[%clk 0:00:07.3]} 90... Kh8 {[%clk 0:00:14.8]}
91. Rc7 {[%clk 0:00:06]} 91... Rg8 {[%clk 0:00:11.2]} 92. Rh7# {[%clk
0:00:05.9]} 1-0

[Event "*** Titled Tuesday Blitz"]
[Site "Chess.com"]
[Date "2018.07.03"]
[Round "9"]
[White "Flawless2018"]
[Black "jacky72"]
[Result "1-0"]
[WhiteElo "2430"]
[BlackElo "2601"]
[TimeControl "180+2"]
[EndTime "14:52:53 PDT"]
[Termination "Flawless2018 won by resignation"]

1. e4 {[%clk 0:03:01]} 1... e5 {[%clk 0:03:00.7]} 2. Nf3 {[%clk 0:03:02.4]} 2...
Nc6 {[%clk 0:03:02.6]} 3. Bc4 {[%clk 0:03:04]} 3... Bc5 {[%clk 0:03:03.4]} 4. c3
{[%clk 0:03:05.4]} 4... Nf6 {[%clk 0:03:04.7]} 5. d4 {[%clk 0:03:07.3]} 5...
exd4 {[%clk 0:03:05.8]} 6. cxd4 {[%clk 0:03:09.2]} 6... Bb4+ {[%clk 0:03:07.1]}
7. Bd2 {[%clk 0:03:11.1]} 7... Nxe4 {[%clk 0:03:07.3]} 8. Bxb4 {[%clk
0:03:12.2]} 8... Nxb4 {[%clk 0:03:09.2]} 9. Bxf7+ {[%clk 0:03:14.1]} 9... Kxf7
{[%clk 0:03:11]} 10. Qb3+ {[%clk 0:03:15.8]} 10... d5 {[%clk 0:03:12.5]} 11.
Qxb4 {[%clk 0:03:17.7]} 11... Rf8 {[%clk 0:03:04.7]} 12. Nc3 {[%clk 0:03:17]}
12... Nxc3 {[%clk 0:03:00.4]} 13. Qxc3 {[%clk 0:03:18.9]} 13... Kg8 {[%clk
0:03:02.3]} 14. O-O {[%clk 0:03:16.2]} 14... c6 {[%clk 0:03:03.8]} 15. Ne5
{[%clk 0:03:11.8]} 15... Bf5 {[%clk 0:03:04.7]} 16. Rfe1 {[%clk 0:03:10.3]}
16... Qg5 {[%clk 0:03:05.4]} 17. a4 {[%clk 0:03:01.6]} 17... Rf6 {[%clk
0:03:03.2]} 18. Re3 {[%clk 0:02:00.3]} 18... Raf8 {[%clk 0:03:01.3]} 19. Rg3
{[%clk 0:01:57]} 19... Qh5 {[%clk 0:02:59.2]} 20. b4 {[%clk 0:01:55.4]} 20...
Bc8 {[%clk 0:02:54.3]} 21. Re1 {[%clk 0:01:53]} 21... Rxf2 {[%clk 0:02:52.1]}
22. b5 {[%clk 0:01:40.5]} 22... Qe2 {[%clk 0:02:39.3]} 23. Qa1 {[%clk
0:01:22.5]} 23... R2f4 {[%clk 0:02:27.2]} 24. Rxe2 {[%clk 0:01:21.3]} 24... Rf1+
{[%clk 0:02:27.5]} 25. Qxf1 {[%clk 0:01:21.7]} 25... Rxf1+ {[%clk 0:02:28.9]}
26. Kxf1 {[%clk 0:01:23.6]} 1-0

[Event "*** Titled Tuesday Blitz"]
[Site "Chess.com"]
[Date "2018.07.03"]
[Round "9"]
[White "morphy1984"]
[Black "Grebeniuk-S"]
[Result "0-1"]
[WhiteElo "2474"]
[BlackElo "2460"]
[TimeControl "180+2"]
[EndTime "14:53:48 PDT"]
[Termination "Grebeniuk-S won by resignation"]

1. e4 {[%clk 0:03:01.9]} 1... d5 {[%clk 0:03:00.3]} 2. exd5 {[%clk 0:03:02.1]}
2... Qxd5 {[%clk 0:03:02.2]} 3. Nc3 {[%clk 0:03:02.6]} 3... Qa5 {[%clk
0:03:03.5]} 4. d4 {[%clk 0:03:03.2]} 4... Nf6 {[%clk 0:03:05]} 5. Nf3 {[%clk
0:03:03.6]} 5... Bg4 {[%clk 0:03:06.4]} 6. h3 {[%clk 0:03:03.5]} 6... Bh5 {[%clk
0:03:07.7]} 7. g4 {[%clk 0:03:04]} 7... Bg6 {[%clk 0:03:09.2]} 8. Ne5 {[%clk
0:03:04.7]} 8... e6 {[%clk 0:03:10.8]} 9. Bg2 {[%clk 0:03:01]} 9... Be4 {[%clk
0:03:11.9]} 10. Bxe4 {[%clk 0:02:58.2]} 10... Nxe4 {[%clk 0:03:13.8]} 11. Qf3
{[%clk 0:02:56.8]} 11... Nd6 {[%clk 0:03:15.1]} 12. Nxf7 {[%clk 0:02:13.6]}
12... Nxf7 {[%clk 0:03:15.8]} 13. Qxb7 {[%clk 0:02:14]} 13... Bb4 {[%clk
0:03:17.3]} 14. Qxa8 {[%clk 0:02:14.8]} 14... Bxc3+ {[%clk 0:03:16.4]} 15. Kf1
{[%clk 0:02:15.7]} 15... Qd5 {[%clk 0:03:10.5]} 16. Qxd5 {[%clk 0:02:14.8]}
16... exd5 {[%clk 0:03:11.8]} 17. bxc3 {[%clk 0:02:15.7]} 17... O-O {[%clk
0:03:03.6]} 18. Kg2 {[%clk 0:02:13.5]} 18... Nc6 {[%clk 0:03:03.4]} 19. Re1
{[%clk 0:02:07.8]} 19... Na5 {[%clk 0:02:58.6]} 20. Ba3 {[%clk 0:02:06]} 20...
Rc8 {[%clk 0:02:54]} 21. Bc5 {[%clk 0:01:59.5]} 21... a6 {[%clk 0:02:51.4]} 22.
Rab1 {[%clk 0:01:53.3]} 22... Ng5 {[%clk 0:02:51]} 23. f3 {[%clk 0:01:49]} 23...
Kf7 {[%clk 0:02:37.5]} 24. Re5 {[%clk 0:01:45.9]} 24... Ne6 {[%clk 0:02:36.4]}
25. Rxd5 {[%clk 0:01:44.8]} 25... Nf4+ {[%clk 0:02:37.5]} 26. Kg3 {[%clk
0:01:42.8]} 26... Nxd5 {[%clk 0:02:39.4]} 27. Bb4 {[%clk 0:01:24.8]} 27... Nc4
{[%clk 0:02:36.8]} 28. Re1 {[%clk 0:01:16.6]} 28... Re8 {[%clk 0:02:33.6]} 29.
Rb1 {[%clk 0:01:07.5]} 29... Rb8 {[%clk 0:02:32.1]} 30. Re1 {[%clk 0:01:06.3]}
30... Nxb4 {[%clk 0:02:31.2]} 31. cxb4 {[%clk 0:01:07]} 31... Rxb4 {[%clk
0:02:33.1]} 32. Kf4 {[%clk 0:00:59.8]} 32... Rb2 {[%clk 0:02:31.6]} 0-1

[Event "*** Titled Tuesday Blitz"]
[Site "Chess.com"]
[Date "2018.07.03"]
[Round "9"]
[White "Irochka83"]
[Black "CarlssonLudvig"]
[Result "1-0"]
[WhiteElo "2270"]
[BlackElo "2138"]
[TimeControl "180+2"]
[EndTime "14:54:00 PDT"]
[Termination "Irochka83 won by resignation"]

1. d4 {[%clk 0:03:01.9]} 1... Nf6 {[%clk 0:02:59.1]} 2. c4 {[%clk 0:03:03.3]}
2... e6 {[%clk 0:03:00.6]} 3. Nc3 {[%clk 0:03:04.3]} 3... Bb4 {[%clk 0:03:01.9]}
4. e3 {[%clk 0:03:05.8]} 4... O-O {[%clk 0:02:43.5]} 5. Bd3 {[%clk 0:03:04.8]}
5... c5 {[%clk 0:02:43.3]} 6. Nf3 {[%clk 0:03:02.5]} 6... b6 {[%clk 0:02:42.5]}
7. O-O {[%clk 0:02:58.6]} 7... Bb7 {[%clk 0:02:43.3]} 8. Na4 {[%clk 0:02:50.8]}
8... cxd4 {[%clk 0:02:43.6]} 9. a3 {[%clk 0:02:50.3]} 9... Be7 {[%clk
0:02:39.8]} 10. exd4 {[%clk 0:02:51.3]} 10... d5 {[%clk 0:02:39.6]} 11. c5
{[%clk 0:02:32.9]} 11... Ba6 {[%clk 0:02:30.2]} 12. b4 {[%clk 0:02:23.5]} 12...
Bxd3 {[%clk 0:02:29.3]} 13. Qxd3 {[%clk 0:02:23.9]} 13... Nfd7 {[%clk
0:02:28.4]} 14. Bf4 {[%clk 0:02:14.8]} 14... bxc5 {[%clk 0:02:10.2]} 15. dxc5
{[%clk 0:02:00.8]} 15... Bf6 {[%clk 0:01:58.7]} 16. Rac1 {[%clk 0:02:00.6]}
16... e5 {[%clk 0:01:59.8]} 17. Qxd5 {[%clk 0:02:01.3]} 17... Nxc5 {[%clk
0:01:44.5]} 18. Qxa8 {[%clk 0:01:51.8]} 18... Nxa4 {[%clk 0:01:43.5]} 19. Bxe5
{[%clk 0:01:50.7]} 19... Bxe5 {[%clk 0:01:43.3]} 20. Nxe5 {[%clk 0:01:52.6]}
20... Qe7 {[%clk 0:01:24.2]} 21. Nc6 {[%clk 0:01:40.4]} 21... Nxc6 {[%clk
0:01:24.4]} 22. Qxc6 {[%clk 0:01:41.5]} 22... Nb2 {[%clk 0:01:24.6]} 23. Qc7
{[%clk 0:01:38.2]} 23... Qe2 {[%clk 0:01:20.9]} 24. Rc2 {[%clk 0:01:25.7]} 24...
Qe5 {[%clk 0:01:08.3]} 25. Qxe5 {[%clk 0:01:25.1]} 1-0